bitfinex/quotes_SOLUSD_20250106
["timestamp","ask_amount","ask_price","bid_price","bid_amount"]
[1736131884613,23.776884,216.74,216.7,136.2]
[1736131884821,0.86522868,216.73,216.7,136.2]
[1736131885350,23.776884,216.74,216.71,8.97368498]
[1736131885514,43.776884,216.77,216.72,8.97368498]
[1736131885718,0.8651456,216.76,216.72,8.97368498]
[1736131886022,0.86515046,216.79,216.73,8.97368498]
[1736131887152,23.776884,216.78,216.74,8.97368498]
[1736131888060,23.776884,216.78,216.75,8.97368498]
[1736131888349,0.86505104,216.77,216.74,8.97368498]
[1736131888930,0.86505104,216.77,216.7,136.2]
[1736131889253,0.86506984,216.78,216.73,8.97368498]
[1736131889763,0.86506984,216.78,216.7,136.2]
[1736131889764,0.86506984,216.78,216.72,8.97368498]
[1736131890621,9.83875482,216.78,216.71,8.97368498]
[1736131890837,23.776884,216.75,216.69,8.97368498]
[1736131891016,23.776884,216.73,216.64,137.7691]
[1736131891215,0.86528947,216.72,216.66,8.97368498]
[1736131891435,23.776884,216.71,216.66,8.97368498]
[1736131891744,0.86536092,216.7,216.66,8.97368498]
[1736131892250,23.776884,216.69,216.65,8.97368498]
[1736131892451,23.776884,216.69,216.66,8.97368498]
[1736131892820,0.86538818,216.68,216.64,10.54278498]
[1736131893020,24.64230607,216.69,216.65,8.97368498]
[1736131894177,23.776884,216.7,216.65,8.97368498]
[1736131894353,0.86540657,216.69,216.65,8.97368498]
[1736131895266,0.86540657,216.69,216.64,8.97368498]
[1736131895646,0.86540657,216.69,216.66,8.97368498]
[1736131895865,23.776884,216.68,216.66,8.97368498]
[1736131896271,23.776884,216.69,216.65,8.97368498]
[1736131896487,0.8654387,216.68,216.65,8.97368498]
[1736131896985,0.8654387,216.68,216.6,136.2]
[1736131897145,0.8654387,216.68,216.62,8.97368498]
[1736131897347,23.776884,216.67,216.62,8.97368498]
[1736131897683,0.86554906,216.66,216.59,137.786]
[1736131897963,23.776884,216.65,216.61,8.97368498]
[1736131898168,0.86555429,216.64,216.61,8.97368498]
[1736131898473,8.97368498,216.68,216.61,8.97368498]
[1736131898474,23.776884,216.66,216.61,8.97368498]
[1736131898673,0.86556685,216.65,216.62,8.97368498]
[1736131898881,0.86556685,216.65,216.61,8.97368498]
[1736131899277,0.86556685,216.65,216.6,8.97368498]
[1736131899468,0.86556685,216.65,216.61,8.97368498]
[1736131899670,23.776884,216.66,216.62,8.97368498]
[1736131899859,0.86555917,216.65,216.62,8.97368498]
[1736131901265,23.776884,216.66,216.62,8.97368498]
[1736131901472,0.86557509,216.65,216.61,8.97368498]
[1736131901786,0.86557509,216.65,216.6,8.97368498]
[1736131902282,0.86557509,216.65,216.5,5.0]
[1736131902283,8.97368498,216.63,216.5,136.2]
[1736131902512,0.8656908,216.62,216.58,8.97368498]
[1736131902786,20.51338498,216.65,216.58,8.97368498]
[1736131902787,23.776884,216.63,216.58,8.97368498]
[1736131902957,0.86570164,216.62,216.58,8.97368498]
[1736131903163,23.776884,216.61,216.51,0.34297471]
[1736131903500,0.86570184,216.6,216.57,8.97368498]
[1736131903785,23.776884,216.62,216.57,8.97368498]
[1736131903969,0.865749,216.61,216.57,8.97368498]
[1736131907719,0.865749,216.61,216.52,136.54305379]
[1736131908010,0.865749,216.61,216.57,8.97368498]
[1736131908219,0.865749,216.61,216.49,6.6294]
[1736131908220,0.865749,216.61,216.49,137.8294]
[1736131908402,0.865749,216.61,216.55,8.97368498]
[1736131908601,0.865749,216.61,216.54,8.97368498]
[1736131908602,23.776884,216.6,216.54,8.97368498]
[1736131908787,23.776884,216.58,216.49,137.8294]
[1736131908991,23.776884,216.56,216.52,8.97368498]
[1736131909205,0.86595077,216.55,216.52,8.97368498]
[1736131910124,23.776884,216.57,216.52,8.97368498]
[1736131910430,0.86592613,216.58,216.55,8.97368498]
[1736131910715,0.86581936,216.61,216.56,8.97368498]
[1736131910906,20.86581936,216.61,216.57,8.97368498]
[1736131911217,0.86577836,216.65,216.6,8.97368498]
[1736131911400,0.86577836,216.65,216.61,8.97368498]
[1736131911606,20.0,216.64,216.61,8.97368498]
[1736131911800,0.86561961,216.63,216.61,8.97368498]
[1736131912120,0.86559804,216.69,216.62,8.97368498]
[1736131912309,0.86559804,216.69,216.67,8.97368498]
[1736131912707,20.86559804,216.69,216.65,8.97368498]
[1736131912895,23.776884,216.68,216.65,8.97368498]
[1736131913526,23.776884,216.66,216.62,8.97368498]
[1736131913707,23.776884,216.66,216.63,8.97368498]
[1736131913905,0.86552374,216.65,216.63,8.97368498]
[1736131914122,0.86552374,216.65,216.62,8.97368498]
[1736131914422,0.86552374,216.65,216.6,8.97368498]
[1736131915117,23.776884,216.64,216.59,8.97368498]
[1736131916236,8.97368498,216.66,216.59,8.97368498]
[1736131916393,24.64250721,216.65,216.59,8.97368498]
[1736131916596,8.97368498,216.65,216.59,8.97368498]
[1736131917534,8.97368498,216.65,216.58,8.97368498]
[1736131918320,23.776884,216.62,216.57,1.6276]
[1736131918507,0.86569931,216.61,216.57,1.6276]
[1736131918825,23.776884,216.6,216.57,1.6276]
[1736131919024,0.86576758,216.59,216.54,8.97368498]
[1736131921532,24.64266514,216.6,216.54,8.97368498]
[1736131921716,8.97368498,216.61,216.51,137.8333]
[1736131921717,11.5395,216.65,216.57,8.97368498]
[1736131921921,8.97368498,216.64,216.57,8.97368498]
[1736131922130,28.97368498,216.66,216.59,8.97368498]
[1736131922439,0.86562354,216.65,216.53,2.28]
[1736131922739,23.776884,216.64,216.58,8.97368498]
[1736131922937,0.86562481,216.63,216.58,8.97368498]
[1736131923107,0.86562481,216.63,216.58,14.07770244]
[1736131923530,0.86562481,216.63,216.59,14.07770244]
[1736131924125,0.8656174,216.63,216.59,14.07770244]
[1736131924333,0.8656174,216.63,216.58,14.07770244]
[1736131924934,0.8656174,216.63,216.57,14.07770244]
[1736131925238,0.8656174,216.63,216.59,14.07770244]
[1736131925437,0.86562131,216.65,216.62,14.07770244]
[1736131925737,14.07770244,216.71,216.64,14.07770244]
[1736131926039,0.86539989,216.7,216.66,14.07770244]
[1736131926360,0.86539989,216.7,216.6,1.85959289]
[1736131926361,0.86538536,216.72,216.68,14.07770244]
[1736131926658,0.86526763,216.74,216.68,14.07770244]
[1736131926942,23.776884,216.73,216.69,14.07770244]
[1736131927239,20.0,216.73,216.69,14.07770244]
[1736131927950,24.64212549,216.72,216.66,14.07770244]
[1736131928143,38.71982793,216.72,216.65,14.07770244]
[1736131928439,23.776884,216.7,216.64,14.07770244]
[1736131928640,23.776884,216.68,216.64,14.07770244]
[1736131928839,37.85458644,216.66,216.6,1.5172]
[1736131929041,23.776884,216.66,216.6,15.59490244]
[1736131929245,23.776884,216.66,216.6,1.5172]
[1736131929444,23.776884,216.66,216.6,15.59490244]
[1736131931656,23.776884,216.66,216.61,14.07770244]
[1736131931845,23.776884,216.67,216.61,14.07770244]
[1736131932151,14.07770244,216.69,216.6,1.5172]
[1736131932318,11.5361,216.71,216.61,14.07770244]
[1736131932319,14.94310092,216.68,216.61,14.07770244]
[1736131933530,0.86539848,216.68,216.63,14.07770244]
[1736131933854,14.07770244,216.72,216.65,14.07770244]
[1736131934018,0.86533441,216.71,216.65,14.07770244]
[1736131934225,23.776884,216.7,216.64,14.07770244]
[1736131934652,23.776884,216.7,216.65,14.07770244]
[1736131935421,0.86533441,216.71,216.66,14.07770244]
[1736131935621,0.86528969,216.73,216.68,14.07770244]
[1736131935934,14.94292964,216.75,216.68,14.07770244]
[1736131936120,23.776884,216.74,216.68,14.07770244]
[1736131937035,0.86521414,216.73,216.67,14.07770244]
[1736131937425,0.86521414,216.73,216.66,14.07770244]
[1736131937748,14.94291658,216.73,216.63,136.2]
[1736131937961,14.07770244,216.69,216.63,136.2]
[1736131938454,14.07770244,216.7,216.63,150.27770244]
[1736131939357,14.07770244,216.69,216.63,136.2]
[1736131941625,14.07770244,216.65,216.6,1.5172]
[1736131941831,14.94321587,216.65,216.6,1.5172]
[1736131942531,14.07770244,216.63,216.56,14.07770244]
[1736131942846,14.07770244,216.63,216.56,150.27770244]
[1736131943343,14.07770244,216.63,216.56,14.07770244]
[1736131944561,37.85458644,216.64,216.56,14.07770244]
[1736131944856,0.86562373,216.63,216.56,14.07770244]
[1736131945768,14.94332617,216.63,216.56,14.07770244]
[1736131946153,0.86562373,216.63,216.56,14.07770244]
[1736131946660,14.94332617,216.63,216.55,137.8437]
[1736131946956,14.94332617,216.63,216.56,14.07770244]
[1736131947456,37.85458644,216.64,216.57,14.07770244]
[1736131947632,23.776884,216.64,216.58,14.07770244]
[1736131947960,38.72018602,216.64,216.57,14.07770244]
[1736131948137,38.72018602,216.64,216.55,137.8437]
[1736131948138,38.72018602,216.64,216.56,14.07770244]
[1736131948543,14.07770244,216.63,216.56,14.07770244]
[1736131948858,38.72018602,216.64,216.56,14.07770244]
[1736131949059,33.65298081,216.64,216.56,9.01049723]
[1736131950436,24.64248358,216.64,216.57,9.01049723]
[1736131950638,8.05427281,216.69,216.63,9.01049723]
[1736131950838,7.18867031,216.69,216.63,9.01049723]
[1736131951235,23.776884,216.68,216.63,9.01049723]
[1736131951637,7.18867031,216.69,216.63,9.01049723]
[1736131951837,23.776884,216.68,216.62,9.01049723]
[1736131952468,32.78738123,216.69,216.62,9.01049723]
[1736131952971,23.776884,216.69,216.62,9.01049723]
[1736131953152,23.776884,216.69,216.63,9.01049723]
[1736131953462,9.01049723,216.72,216.65,9.01049723]
[1736131953645,0.8653133,216.71,216.65,9.01049723]
[1736131953837,23.776884,216.7,216.65,9.01049723]
[1736131954040,23.776884,216.7,216.64,9.01049723]
[1736131954334,32.78738123,216.7,216.63,9.01049723]
[1736131955461,2.69008381,216.74,216.65,9.01049723]
[1736131955462,0.86534879,216.74,216.65,9.01049723]
[1736131955667,9.01049723,216.73,216.66,9.01049723]
[1736131955850,9.01049723,216.74,216.67,9.01049723]
[1736131956564,23.776884,216.73,216.67,9.01049723]
[1736131956734,0.86520403,216.75,216.68,9.01049723]
[1736131956939,9.01049723,216.75,216.68,9.01049723]
[1736131957237,23.776884,216.74,216.68,9.01049723]
[1736131957857,9.01049723,216.77,216.7,9.01049723]
[1736131958067,23.776884,216.76,216.7,9.01049723]
[1736131958969,20.86507843,216.79,216.72,9.01049723]
[1736131959269,33.65235043,216.78,216.71,9.01049723]
[1736131959447,9.01049723,216.77,216.7,9.01049723]
[1736131959648,33.65235043,216.78,216.7,9.01049723]
[1736131959966,32.78738123,216.78,216.7,9.01049723]
[1736131960170,33.65237293,216.78,216.71,9.01049723]
[1736131960555,33.65237293,216.78,216.7,9.01049723]
[1736131961967,9.01049723,216.74,216.67,0.34166159]
[1736131962265,20.0,216.79,216.67,0.34166159]
[1736131962266,9.01049723,216.73,216.67,136.2]
[1736131962455,9.01049723,216.72,216.67,136.2]
[1736131962970,9.01049723,216.73,216.67,136.2]
[1736131963277,9.01049723,216.74,216.67,145.21049723]
[1736131963446,9.01049723,216.73,216.67,136.2]
[1736131965871,9.01049723,216.73,216.66,145.21049723]
[1736131966861,9.01049723,216.74,216.67,9.01049723]
[1736131967260,9.01049723,216.74,216.68,9.01049723]
[1736131967979,9.01049723,216.74,216.67,9.01049723]
[1736131969385,23.776884,216.74,216.68,9.01049723]
[1736131969878,23.776884,216.74,216.66,136.2]
[1736131969879,32.78738123,216.74,216.67,9.01049723]
[1736131974088,32.78738123,216.74,216.66,136.2]
[1736131974291,32.78738123,216.74,216.67,9.01049723]
[1736131974662,0.86516892,216.79,216.7,9.01049723]
[1736131974870,9.01049723,216.78,216.71,9.01049723]
[1736131975069,0.86505911,216.77,216.71,9.01049723]
[1736131975270,29.87555634,216.77,216.7,9.01049723]
[1736131977606,0.86505911,216.77,216.67,0.34173771]
[1736131977901,0.86507309,216.82,216.74,9.01049723]
[1736131978089,9.01049723,216.81,216.73,145.21049723]
[1736131978270,9.87543317,216.8,216.73,136.2]
[1736131979474,0.86493594,216.8,216.73,136.2]
[1736131979673,9.87543317,216.8,216.73,136.2]
[1736131980888,9.01049723,216.8,216.73,136.2]
[1736131981100,20.0,216.81,216.75,9.01049723]
[1736131981310,20.0,216.81,216.74,9.01049723]
[1736131982514,20.0,216.81,216.75,9.01049723]
[1736131982678,15.18979723,216.85,216.77,9.01049723]
[1736131982998,9.01049723,216.85,216.77,9.01049723]
[1736131983376,9.01049723,216.82,216.74,9.01049723]
[1736131983578,9.01049723,216.81,216.74,9.01049723]
[1736131983799,23.776884,216.83,216.73,9.01049723]
[1736131983800,9.01049723,216.8,216.73,9.01049723]
[1736131984386,9.01049723,216.8,216.72,145.21049723]
[1736131984901,9.01049723,216.8,216.73,9.01049723]
[1736131985076,23.776884,216.81,216.75,9.01049723]
[1736131985499,9.01049723,216.83,216.75,9.01049723]
[1736131985698,11.5281,216.86,216.77,9.01049723]
[1736131985997,9.01049723,216.84,216.77,9.01049723]
[1736131986198,9.01049723,216.83,216.76,9.01049723]
[1736131986890,9.01049723,216.83,216.75,9.01049723]
[1736131987484,9.01049723,216.83,216.76,9.01049723]
[1736131987905,9.01049723,216.83,216.75,9.01049723]
[1736131988712,0.8647414,216.85,216.78,9.01049723]
[1736131988713,9.01049723,216.85,216.78,9.01049723]
[1736131988887,9.01049723,216.86,216.78,9.01049723]
[1736131989077,9.01049723,216.87,216.8,9.01049723]
[1736131989587,9.01049723,216.9,216.83,9.01049723]
[1736131989793,16.19916754,216.91,216.83,9.01049723]
[1736131990101,32.78738123,216.9,216.83,9.01049723]
[1736131990309,23.776884,216.9,216.83,9.01049723]
[1736131990687,9.01049723,216.9,216.83,9.01049723]
[1736131991091,32.78738123,216.89,216.81,9.35135926]
[1736131991396,9.01049723,216.85,216.78,146.86909723]
[1736131991600,9.01049723,216.84,216.78,137.8586]
[1736131991903,9.01049723,216.84,216.78,136.2]
[1736131993814,9.01049723,216.83,216.78,136.2]
[1736131993984,9.01049723,216.82,216.78,136.2]
[1736131994299,9.01049723,216.83,216.78,136.2]
[1736131995906,9.01049723,216.83,216.76,9.01049723]
[1736131996208,9.01049723,216.84,216.76,9.01049723]
[1736131996507,9.01049723,216.82,216.75,9.01049723]
[1736131996902,9.01049723,216.8,216.73,10.66909723]
[1736131997718,9.01049723,216.81,216.74,9.01049723]
[1736131998586,29.01049723,216.82,216.74,9.01049723]
[1736131998879,33.65223177,216.81,216.73,1.6586]
[1736131999113,23.776884,216.79,216.73,10.66909723]
[1736131999406,23.776884,216.79,216.7,136.2]
[1736131999407,9.01049723,216.77,216.7,9.01049723]
[1736131999994,0.86507428,216.76,216.7,9.01049723]
[1736132000911,9.01049723,216.77,216.7,9.01049723]
[1736132001208,23.776884,216.76,216.7,9.01049723]
[1736132001617,9.01049723,216.77,216.7,9.01049723]
[1736132001792,9.87556193,216.79,216.71,9.01049723]
[1736132002327,23.776884,216.78,216.72,9.01049723]
[1736132003321,23.776884,216.77,216.71,9.01049723]
[1736132003615,23.776884,216.77,216.72,9.01049723]
[1736132004622,23.776884,216.78,216.72,9.01049723]
[1736132006847,32.78738123,216.78,216.69,0.34178526]
[1736132007053,0.86500978,216.77,216.69,0.34178526]
[1736132007255,33.65244361,216.78,216.71,9.01049723]
[1736132008157,9.87555174,216.8,216.73,9.01049723]
[1736132008529,23.776884,216.79,216.73,9.01049723]
[1736132009259,24.64188544,216.79,216.73,9.01049723]
[1736132009628,33.65238267,216.79,216.72,9.01049723]
[1736132010356,32.78738123,216.79,216.72,9.01049723]
[1736132010538,9.8755016,216.78,216.7,9.01049723]
[1736132010853,0.86500437,216.78,216.71,9.01049723]
[1736132011766,0.86500437,216.78,216.72,9.01049723]
[1736132013255,0.86500437,216.78,216.7,9.01049723]
[1736132013429,23.776884,216.76,216.68,146.78439723]
[1736132013628,24.64203137,216.76,216.69,9.01049723]
[1736132014053,24.64203137,216.76,216.7,9.01049723]
[1736132014862,33.6525286,216.76,216.69,9.01049723]
[1736132015073,23.776884,216.74,216.68,136.2]
[1736132015245,0.86522679,216.73,216.67,9.01049723]
[1736132016364,23.776884,216.72,216.63,136.5420451]
[1736132016534,23.776884,216.72,216.62,8.2454]
[1736132016535,0.86532862,216.71,216.65,9.01049723]
[1736132017363,20.0,216.74,216.68,9.01049723]
[1736132017667,20.0,216.74,216.69,9.01049723]
[1736132018149,43.776884,216.74,216.68,9.01049723]
[1736132019189,43.776884,216.74,216.67,9.01049723]
[1736132019498,43.776884,216.74,216.63,136.2]
[1736132019499,9.01049723,216.72,216.65,9.01049723]
[1736132019794,0.86531831,216.71,216.65,9.01049723]
[1736132019975,0.86531831,216.71,216.64,9.01049723]
[1736132020996,0.86531831,216.71,216.65,9.01049723]
[1736132021196,23.776884,216.7,216.65,9.01049723]
[1736132021488,23.776884,216.7,216.63,136.2]
[1736132021690,23.776884,216.7,216.64,9.01049723]
[1736132021859,23.776884,216.7,216.63,145.21049723]
[1736132022062,23.776884,216.7,216.64,9.01049723]
[1736132023266,23.776884,216.7,216.65,9.01049723]
[1736132024995,23.776884,216.7,216.66,9.01049723]
[1736132025204,24.64219749,216.72,216.66,9.01049723]
[1736132025562,0.86531247,216.73,216.67,9.01049723]
[1736132025799,20.0,216.72,216.68,9.01049723]
[1736132026004,10.52889723,216.76,216.68,9.01049723]
[1736132026297,0.86516789,216.75,216.68,9.01049723]
[1736132026527,20.0,216.74,216.7,9.01049723]
[1736132027802,20.0,216.74,216.69,9.01049723]
[1736132028395,20.0,216.74,216.68,9.01049723]
[1736132028702,20.86517305,216.74,216.68,9.01049723]
[1736132028881,20.0,216.74,216.68,9.01049723]
[1736132031115,20.0,216.74,216.69,9.01049723]
[1736132031495,0.86513312,216.73,216.69,9.01049723]
[1736132031715,20.86522182,216.74,216.67,9.01049723]
[1736132032417,9.01049723,216.72,216.65,9.01049723]
[1736132032597,9.87576069,216.72,216.65,9.01049723]
[1736132032798,9.01049723,216.72,216.65,9.01049723]
[1736132033685,0.86526213,216.71,216.65,9.01049723]
[1736132033884,9.87579964,216.72,216.65,9.01049723]
[1736132034416,9.01049723,216.7,216.63,9.01049723]
[1736132034620,9.87586494,216.7,216.62,145.21049723]
[1736132034808,9.01049723,216.7,216.63,9.01049723]
[1736132034988,24.64224431,216.71,216.64,9.01049723]
[1736132036514,24.64224431,216.71,216.65,9.01049723]
[1736132037209,24.64224431,216.71,216.64,9.01049723]
[1736132038299,24.64224431,216.71,216.65,9.01049723]
[1736132038709,24.64224431,216.71,216.64,9.01049723]
[1736132038910,24.64224431,216.71,216.62,9.01049723]
[1736132038911,9.01049723,216.7,216.62,9.01049723]
[1736132039115,33.65274154,216.71,216.63,9.01049723]
[1736132039837,33.65274154,216.71,216.64,9.01049723]
[1736132041905,24.64224431,216.71,216.65,9.01049723]
[1736132043225,24.64224431,216.71,216.59,0.3423157]
[1736132043425,33.65274154,216.71,216.64,9.01049723]
[1736132047945,24.64224431,216.71,216.64,9.01049723]
[1736132048126,29.87586744,216.73,216.6,0.34232402]
[1736132048336,23.776884,216.66,216.58,1.6204]
[1736132048565,24.64240075,216.66,216.58,10.63089723]
[1736132049461,9.01049723,216.65,216.58,10.63089723]
[1736132049629,9.87603512,216.65,216.58,10.63089723]
[1736132049825,9.01049723,216.64,216.58,1.6204]
[1736132050155,9.01049723,216.63,216.56,9.01049723]
[1736132050958,9.01049723,216.64,216.57,9.01049723]
[1736132051759,9.01049723,216.65,216.58,9.01049723]
[1736132051931,9.01049723,216.66,216.58,9.01049723]
[1736132052131,9.01049723,216.66,216.59,9.01049723]
[1736132052328,24.64240052,216.67,216.6,9.01049723]
[1736132054043,33.65289775,216.67,216.6,9.01049723]
[1736132055366,9.01049723,216.66,216.55,0.34262614]
[1736132055669,9.87600493,216.65,216.58,9.01049723]
[1736132056831,9.87604278,216.66,216.59,9.01049723]
[1736132060160,32.78738123,216.65,216.56,0.34274956]
[1736132060374,32.78738123,216.65,216.58,9.01049723]
[1736132061265,0.86556096,216.64,216.57,9.01049723]
[1736132061467,0.86556096,216.64,216.55,136.2]
[1736132061468,9.01049723,216.62,216.55,9.01049723]
[1736132061633,9.87616319,216.62,216.55,9.01049723]
[1736132063366,0.86566596,216.62,216.56,9.01049723]
[1736132063564,32.78738123,216.63,216.56,9.01049723]
[1736132063764,0.86566025,216.62,216.53,136.2]
[1736132064067,30.406584,216.63,216.57,9.01049723]
[1736132064844,9.87611741,216.62,216.54,0.34292586]
[1736132065039,30.406584,216.63,216.57,9.01049723]
[1736132065241,31.2722307,216.63,216.57,9.01049723]
[1736132066365,31.2722307,216.63,216.58,9.01049723]
[1736132066660,30.406584,216.63,216.58,9.01049723]
[1736132067043,0.86561171,216.62,216.54,0.34292586]
[1736132067348,0.86561171,216.62,216.56,9.01049723]
[1736132069470,0.86561171,216.62,216.55,9.01049723]
[1736132070330,0.86561171,216.62,216.54,0.34292586]
[1736132070331,23.776884,216.61,216.54,0.34292586]
[1736132070531,0.86569387,216.6,216.5,138.46]
[1736132070732,23.776884,216.61,216.54,9.01049723]
[1736132070953,0.86575406,216.6,216.54,9.01049723]
[1736132072344,23.776884,216.61,216.54,9.01049723]
[1736132072663,24.64261199,216.61,216.54,9.01049723]
[1736132073159,24.64261199,216.61,216.55,9.01049723]
[1736132073547,0.86572715,216.6,216.51,0.34310483]
[1736132073753,9.87623998,216.62,216.54,9.01049723]
[1736132073949,0.86574275,216.62,216.56,9.01049723]
[1736132074165,0.86563757,216.62,216.56,9.01049723]
[1736132074367,23.776884,216.61,216.54,9.01049723]
[1736132074670,0.86575961,216.6,216.52,9.01049723]
[1736132075767,23.776884,216.59,216.49,0.3430786]
[1736132075970,0.86576681,216.58,216.49,0.3430786]
[1736132076271,0.86576681,216.58,216.52,9.01049723]
[1736132076453,23.776884,216.58,216.53,9.01049723]
[1736132078258,23.776884,216.58,216.49,0.3430786]
[1736132078462,23.776884,216.58,216.53,9.01049723]
[1736132079283,29.01049723,216.6,216.53,9.01049723]
[1736132080275,24.64264076,216.59,216.53,9.01049723]
[1736132080975,23.776884,216.59,216.53,9.01049723]
[1736132081776,23.776884,216.59,216.54,9.01049723]
[1736132082554,23.776884,216.59,216.53,9.01049723]
[1736132083682,23.776884,216.59,216.52,9.01049723]
[1736132083870,32.78738123,216.59,216.52,9.01049723]
[1736132084054,0.86580896,216.58,216.49,136.2]
[1736132084255,0.86580896,216.58,216.51,9.01049723]
[1736132084562,0.86580896,216.58,216.5,9.01049723]
[1736132084950,0.86580896,216.58,216.46,1.6295]
[1736132084951,9.01049723,216.55,216.46,1.6295]
[1736132085146,33.65337167,216.54,216.46,10.98357121]
[1736132085352,9.01049723,216.53,216.38,137.8087]
[1736132085558,9.87655252,216.52,216.45,9.01049723]
[1736132085959,9.01049723,216.52,216.45,9.01049723]
[1736132086346,33.65343652,216.54,216.47,9.01049723]
[1736132086678,24.64293929,216.54,216.48,9.01049723]
[1736132089890,33.65343652,216.54,216.47,9.01049723]
[1736132090059,23.776884,216.52,216.46,9.01049723]
[1736132090258,33.65346561,216.52,216.45,9.01049723]
[1736132090478,24.64296838,216.52,216.46,9.01049723]
[1736132091359,24.64296838,216.52,216.44,0.34374798]
[1736132091565,24.64296838,216.52,216.46,9.01049723]
[1736132092384,33.65346561,216.52,216.45,9.01049723]
[1736132094172,33.65346561,216.52,216.38,8.0795]
[1736132094173,23.776884,216.5,216.38,8.0795]
[1736132094374,0.86619548,216.49,216.43,9.01049723]
[1736132095676,9.87669271,216.49,216.42,9.01049723]
[1736132097085,0.86619548,216.49,216.42,9.01049723]
[1736132097399,9.01049723,216.49,216.42,9.01049723]
[1736132097602,9.8767075,216.49,216.42,9.01049723]
[1736132100595,0.86621027,216.49,216.43,9.01049723]
[1736132100905,1.5412,216.53,216.48,9.01049723]
[1736132101076,9.87668495,216.55,216.48,9.01049723]
[1736132102102,0.86618772,216.55,216.49,9.01049723]
[1736132102282,7.2754822,216.56,216.49,9.01049723]
[1736132102602,16.28597943,216.56,216.49,9.01049723]
[1736132103206,23.776884,216.55,216.49,9.01049723]
[1736132103792,32.78738123,216.55,216.48,9.01049723]
[1736132104209,23.776884,216.55,216.45,0.34343529]
[1736132104389,9.01049723,216.54,216.47,9.01049723]
[1736132104781,9.87646347,216.53,216.46,9.01049723]
[1736132105603,9.87646347,216.53,216.45,9.01049723]
[1736132107210,9.01049723,216.53,216.46,9.01049723]
[1736132107699,24.64290361,216.52,216.46,9.01049723]
[1736132107905,33.65340084,216.52,216.45,9.01049723]
[1736132110009,32.78738123,216.52,216.45,9.01049723]
[1736132110206,23.776884,216.52,216.46,9.01049723]
[1736132111007,0.86608583,216.55,216.46,9.01049723]
[1736132111197,20.0,216.53,216.47,9.35417763]
[1736132114314,20.0,216.53,216.47,9.01049723]
[1736132114615,29.01049723,216.53,216.45,9.01049723]
[1736132114818,33.65338315,216.52,216.44,9.01049723]
[1736132116220,9.01049723,216.45,216.32,145.18535956]
[1736132116517,9.01049723,216.42,216.33,0.34442037]
[1736132116730,9.01049723,216.41,216.34,9.01049723]
[1736132117024,9.01049723,216.42,216.35,9.01049723]
[1736132118394,9.01049723,216.41,216.32,136.2]
[1736132118602,9.01049723,216.42,216.35,9.01049723]
[1736132119126,9.01049723,216.42,216.34,9.01049723]
[1736132119535,9.01049723,216.42,216.35,9.01049723]
[1736132122824,9.01049723,216.43,216.35,9.01049723]
[1736132123134,0.866458,216.42,216.35,9.01049723]
[1736132123431,9.87695523,216.42,216.35,9.01049723]
[1736132124233,32.78738123,216.41,216.32,0.34450024]
[1736132124435,32.78738123,216.41,216.35,9.01049723]
[1736132126413,23.776884,216.41,216.35,9.01049723]
[1736132126730,24.64339801,216.41,216.35,9.01049723]
[1736132127134,24.64339801,216.41,216.32,0.34450024]
[1736132127434,33.65389524,216.41,216.35,9.01049723]
[1736132132643,33.65389524,216.41,216.32,0.34450024]
[1736132132817,9.01049723,216.39,216.3,136.2]
[1736132133014,9.01049723,216.38,216.3,136.2]
[1736132133228,9.01049723,216.37,216.31,9.01049723]
[1736132133822,9.01049723,216.36,216.3,136.2]
[1736132134011,9.01049723,216.34,216.25,136.2]
[1736132134216,0.86681681,216.33,216.27,9.01049723]
[1736132134543,9.01049723,216.32,216.26,9.01049723]
[1736132134739,9.01049723,216.32,216.22,1.6418]
[1736132134952,9.87738851,216.31,216.24,9.01049723]
[1736132135139,9.01049723,216.3,216.22,1.98717568]
[1736132135364,9.01049723,216.29,216.23,9.01049723]
[1736132135635,9.01049723,216.29,216.22,9.01049723]
[1736132136024,9.01049723,216.29,216.23,9.01049723]
[1736132136539,9.01049723,216.29,216.22,9.01049723]
[1736132136843,9.01049723,216.29,216.23,9.01049723]
[1736132138044,9.01049723,216.29,216.22,9.01049723]
[1736132139042,9.01049723,216.27,216.14,165.51935074]
[1736132139264,9.01049723,216.27,216.15,136.54571779]
[1736132139446,9.01049723,216.27,216.2,9.01049723]
[1736132140635,9.01049723,216.27,216.16,0.34576129]
[1736132140835,9.01049723,216.27,216.2,9.01049723]
[1736132141058,24.64396439,216.26,216.16,0.34576129]
[1736132141359,9.01049723,216.25,216.18,9.01049723]
[1736132142163,9.01049723,216.25,216.16,0.34576129]
[1736132142164,23.776884,216.24,216.16,0.34576129]
[1736132142460,24.6440536,216.24,216.18,9.01049723]
[1736132142760,33.65455083,216.24,216.17,9.01049723]
[1736132145157,23.776884,216.24,216.19,9.01049723]
[1736132145332,9.01049723,216.25,216.19,9.01049723]